Cogmind - Beta 14 --- EXPLORER MODE // 2024.09.24 @ 20:49:18 // Winter2019/RPGLIKE Player: JustYourOrdinaryPerson Result: Destroyed by B-75 Beast with Heavy Plasma Cannon Performance ------------- Evolutions (5) 2500 Regions Visited (9) 1800 Robots Destroyed (58) 290 Value Destroyed (2096) 2096 Prototype IDs (0) 0 Alien Tech Used (0) 0 Bonus (27) 27 TOTAL SCORE: 6713 Bonus ------- High Alert Combat Kills 32 Follower Combat Kills 226 Friendly Fire -231 Cogmind --------- Core Integrity 0/850 Matter 79/350 Energy 260/260 System Corruption 0% Temperature Cool (12) Movement Walking (125) Location -5/Extension Parts ------- > --- POWER (1) -------- Light Fission Core > --- PROPULSION (2) --- Improved Carbon-fiber Leg Improved Titanium Leg > --- UTILITY (3) ------ Trap Scanner Advanced Terrain Scan Processor Targeting Computer > --- WEAPON (3) ------- Gauss Cannon Long-range Missile Launcher Scythe > --- INVENTORY (2) ---- Light Nuclear Core Backup Plating I Peak State ------------ > --- POWER ------------ Light Fission Core > --- PROPULSION ------- Improved Carbon-fiber Leg Improved Titanium Leg > --- UTILITY ---------- Trap Scanner Advanced Terrain Scan Processor Targeting Computer > --- WEAPON ----------- Gauss Cannon Long-range Missile Launcher Scythe > --- INVENTORY -------- Light Nuclear Core Backup Plating I [Rating: 33] Favorites ----------- Power Light Deuterium Engine Engine Light Deuterium Engine Power Core Light Fission Core Propulsion Aluminum Leg Leg Aluminum Leg Utility Targeting Computer Device Trap Scanner Processor Targeting Computer Protection Backup Plating I Weapon Flak Cannon Energy Gun Medium Laser Ballistic Gun Assault Rifle Ballistic Cannon Flak Cannon Launcher Rocket Launcher Slashing Weapon Scythe Build | -11 -10 -10 -10 -9 -8 -7 -6 -5 -5 ------- Run | Yrd Mat Min Exi Min Mat Fac Fac Fac Ext Slots Evolved 5 | . 1 . . . . 3 1 . . Power . | . . . . . . . . . . Propulsion 1 | . 1 . . . . . . . . Utility 2 | . . . . . . 2 . . . Weapon 2 | . . . . . . 1 1 . . Parts Attached 22 | 6 . 2 . . 2 6 4 2 . Power 4 | 1 . . . . 1 1 1 . . Engine 2 | 1 . . . . 1 . . . . Core 2 | . . . . . . 1 1 . . Reactor . | . . . . . . . . . . Propulsion 6 | 1 . 1 . . . 2 1 1 . Treads . | . . . . . . . . . . Leg 6 | 1 . 1 . . . 2 1 1 . Wheel . | . . . . . . . . . . Hover . | . . . . . . . . . . Flight . | . . . . . . . . . . Utility 4 | 2 . . . . . 2 . . . Device 1 | . . . . . . 1 . . . Storage . | . . . . . . . . . . Processor 2 | 1 . . . . . 1 . . . Hackware . | . . . . . . . . . . Protection 1 | 1 . . . . . . . . . Artifact . | . . . . . . . . . . Weapon 8 | 2 . 1 . . 1 1 2 1 . Energy Gun 1 | 1 . . . . . . . . . Energy Cannon . | . . . . . . . . . . Ballistic Gun 1 | 1 . . . . . . . . . Ballistic Cannon 3 | . . 1 . . 1 . 1 . . Launcher 2 | . . . . . . 1 . 1 . Special Weapon . | . . . . . . . . . . Impact Weapon . | . . . . . . . . . . Slashing Weapon 1 | . . . . . . . 1 . . Piercing Weapon . | . . . . . . . . . . Special Melee Weapon . | . . . . . . . . . . Unidentified Prototypes . | . . . . . . . . . . Parts Lost . | . . . . . . . . . . Power . | . . . . . . . . . . Propulsion . | . . . . . . . . . . Utility . | . . . . . . . . . . Weapon . | . . . . . . . . . . Highest Loss Streak . | . . . . . . . . . . To Critical Strikes . | . . . . . . . . . . Average Slot Usage (%) 96 | . 81 92 100 100 100 92 100 100 100 Engine 12 | . 20 20 20 20 20 13 . . . Core 3 | . . . . . . . 11 11 11 Leg 29 | . 20 32 40 40 40 28 22 22 22 Device 3 | . . . . . . . 11 11 11 Processor 20 | . 20 20 20 20 20 20 22 22 22 Ballistic Gun 1 | . 20 2 . . . . . . . Ballistic Cannon 14 | . . 17 20 20 20 14 11 11 11 Launcher 5 | . . . . . . 8 11 11 11 Slashing Weapon 3 | . . . . . . . 10 11 11 Peak Build Rating 33 | 4 4 7 7 7 9 21 30 33 33 Average Rating 15 | 3 4 6 7 7 8 12 28 32 33 On Entrance 12 | . 4 4 7 7 7 9 21 30 33 Naked Turns . | . . . . . . . . . . Heaviest Build 26 | 7 7 11 11 11 11 17 22 26 26 Greatest Support 43 | 10 10 20 20 20 20 35 43 43 43 Greatest Overweight (x) 2 | 2 . 1 . . . . . . . Average Overweight (x) . | . . . . . . . . . . Largest Inventory Capacity 2 | . . . . . . 2 2 2 2 Average Capacity . | . . . . . . 1 2 2 2 Most Carried 2 | . . . . . . 2 2 2 2 Average Carried . | . . . . . . . 2 2 2 Final Capacity 2 | . . . . . . 2 2 2 2 Final Carried 2 | . . . . . . 2 2 2 2 Class Distribution -------------------- 70% | Wizard-Mutant 29% | Hacker-Mutant Dominant Class ---------------- Hacker-Mutant | -10/Materials Hacker-Mutant | -10/Mines Hacker-Mutant | -10/Exiles Hacker-Mutant | -9/Mines Wizard-Mutant | -8/Materials Wizard-Mutant | -7/Factory Wizard-Mutant | -6/Factory Wizard-Mutant | -5/Factory Wizard-Mutant | -5/Extension Resources | -11 -10 -10 -10 -9 -8 -7 -6 -5 -5 ----------- Run | Yrd Mat Min Exi Min Mat Fac Fac Fac Ext Matter Collected 1169 | 266 50 74 . 18 230 187 253 59 32 Remotely . | . . . . . . . . . . Salvage Created 1279 | 91 57 25 . . 345 297 268 192 4 Parts 86 | 4 3 3 . 1 20 26 15 14 . Haulers Intercepted 1 | . . . . . . 1 . . . Recyclers Shooed 2 | . . . . . . . . 2 . Parts Field Recycled . | . . . . . . . . . . Retrieved Matter . | . . . . . . . . . . Parts Self-Destructed . | . . . . . . . . . . Prevented . | . . . . . . . . . . Kills | -11 -10 -10 -10 -9 -8 -7 -6 -5 -5 ------- Run | Yrd Mat Min Exi Min Mat Fac Fac Fac Ext Combat Hostiles Destroyed 33 | . 1 3 . 1 12 8 4 4 . Guns 1 | . 1 . . . . . . . . Cannons 26 | . . 3 . 1 12 6 2 2 . AOE 6 | . . . . . . 2 2 2 . Classes Destroyed 13 | 2 1 1 . . 4 2 3 . . Worker 4 | . . . . . . . 1 3 . Builder 7 | . . . . . . 4 1 2 . Tunneler 2 | 1 . . . . . . . 1 . Hauler 1 | . . . . . . 1 . . . Recycler 3 | 1 . . . . . 1 . 1 . Mechanic 1 | . . . . . . . 1 . . Watcher 6 | . . . . . 1 2 . 2 1 Grunt 15 | . 1 1 . 1 5 4 1 2 . Duelist 1 | . . . . . 1 . . . . Sentry 10 | . . . . . 5 4 1 . . Demolisher 2 | . . 2 . . . . . . . Hunter 5 | . . . . . 1 . 2 2 . Programmer 1 | . . . . . . . 1 . . Best Kill Streak 13 | 1 1 2 . 1 7 11 4 13 1 Combat Bots Only 7 | . 1 2 . 1 7 3 2 3 . Max Kills in Single Turn 4 | 1 1 1 . 1 1 3 3 4 1 Gunslinging . | . . . . . . . . . . Exploded 1 | . . . . . . 1 1 1 . Melee . | . . . . . . . . . . Uniques/NPCs Destroyed . | . . . . . . . . . . Combat | -11 -10 -10 -10 -9 -8 -7 -6 -5 -5 -------- Run | Yrd Mat Min Exi Min Mat Fac Fac Fac Ext Hostile Shots Fired 252 | . 4 17 . 2 34 118 34 11 32 Missed 104 | . 2 3 . 1 11 57 13 4 13 Damage Taken 1757 | . 12 392 . 11 363 306 146 215 312 Core 1442 | . 8 336 . 8 300 232 118 179 261 Absorbed by Shields . | . . . . . . . . . . Redirected to Core 961 | . 8 188 . 8 211 178 70 120 178 Ignored by Resistances 1165 | . 8 229 . 6 216 229 100 154 223 Regen/Repaired (Parts) 33 | . . . . . . 33 . . . Core Remaining (%) 68 | 100 . . . 62 69 63 48 . . Volleys Fired 112 | 11 4 7 . 3 35 28 10 10 4 Largest 2 | 1 1 1 . 1 1 2 2 2 1 Hottest 91 | 50 20 44 . 44 44 77 81 91 48 Shots Fired 142 | 11 4 7 . 3 35 41 17 20 4 Gun 15 | 11 4 . . . . . . . . Cannon 97 | . . 7 . 3 35 28 10 10 4 Launcher 30 | . . . . . . 13 7 10 . Special . | . . . . . . . . . . Kinetic 103 | 2 4 7 . 3 35 28 10 10 4 Thermal 9 | 9 . . . . . . . . . Explosive 30 | . . . . . . 13 7 10 . Electromagnetic . | . . . . . . . . . . Robot Hit Streak 22 | 3 4 10 . 11 22 14 13 9 13 Robot Miss Streak 4 | 1 1 2 . 2 4 3 2 1 . Penetration Max 1 | . . . . . . . 1 . . Secondary Targets . | . . . . . . . . . . Shots Hit Robots 124 | 8 3 7 . 3 35 35 13 16 4 Core Hits 160 | 3 2 9 . 4 55 52 18 16 1 Critical Kills . | . . . . . . . . . . Critical Parts Destroyed . | . . . . . . . . . . Critical Strikes 4 | 1 . . . . . . 1 2 . Burn 1 | 1 . . . . . . . . . Blast 3 | . . . . . . . 1 2 . Melee Attacks . | . . . . . . . . . . Impact . | . . . . . . . . . . Slashing . | . . . . . . . . . . Piercing . | . . . . . . . . . . Sneak Attacks . | . . . . . . . . . . Combat Hostiles . | . . . . . . . . . . Follow-up Attacks . | . . . . . . . . . . Damage Inflicted 5465 | 103 46 152 . 54 950 1530 766 1729 135 Guns 149 | 103 46 . . . . . . . . Cannons 2551 | . . 152 . 54 950 808 233 219 135 Explosions 2765 | . . . . . . 722 533 1510 . Melee . | . . . . . . . . . . Ramming . | . . . . . . . . . . Kinetic 2612 | 15 46 152 . 54 950 808 233 219 135 Thermal 522 | 88 . . . . . . 69 365 . Explosive 2331 | . . . . . . 722 464 1145 . Electromagnetic . | . . . . . . . . . . Impact . | . . . . . . . . . . Slashing . | . . . . . . . . . . Piercing . | . . . . . . . . . . Highest Corruption . | . . . . . . . . . . Average Corruption . | . . . . . . . . . . Corruption Purged . | . . . . . . . . . . Corruption Blocked . | . . . . . . . . . . Overload Shots . | . . . . . . . . . . Overflow Damage 366 | . . . . . . 2 13 318 33 Projectiles 35 | . . . . . . 2 . . 33 Explosions 331 | . . . . . . . 13 318 . Melee . | . . . . . . . . . . Knockbacks 32 | . . 3 . 1 21 7 . . . Impact . | . . . . . . . . . . Kinetic 31 | . . 3 . 1 21 6 . . . Secondary 1 | . . . . . . 1 . . . Self-Inflicted Damage 281 | . . . . . 71 10 55 145 . Shots 9 | . . . . . 1 1 2 5 . Rammed . | . . . . . . . . . . Targets Rammed . | . . . . . . . . . . Kicked . | . . . . . . . . . . Crushed . | . . . . . . . . . . Highest Temperature 162 | 50 . 24 . 17 101 162 120 42 . Average Temperature 31 | 19 . 11 . 8 26 45 43 11 . Received Heat Transfer 447 | . 12 . . 9 171 138 30 9 78 Siege Activations . | . . . . . . . . . . Robots Corrupted . | . . . . . . . . . . Combat Hostiles . | . . . . . . . . . . Parts Fried . | . . . . . . . . . . Impact Corruptions . | . . . . . . . . . . Robots Melted . | . . . . . . . . . . Combat Hostiles . | . . . . . . . . . . Parts Melted 1 | 1 . . . . . . . . . Heat Transferred 633 | 333 . . . . . . 50 250 . Parts Sabotaged . | . . . . . . . . . . Parts Stolen . | . . . . . . . . . . Parts Stripped . | . . . . . . . . . . Power Chain Reactions . | . . . . . . . . . . Alert | -11 -10 -10 -10 -9 -8 -7 -6 -5 -5 ------- Run | Yrd Mat Min Exi Min Mat Fac Fac Fac Ext Peak Influence 496 | 10 29 95 . 47 298 307 206 496 185 Initial 178 | . 4 . . . 12 14 16 73 178 Average 63 | 3 5 31 . 8 75 68 28 111 115 Maximum Alert Level 2 | . . . . . 1 1 1 2 . Low Security (%) 92 | 100 100 100 . 100 93 83 98 84 100 Level 1 5 | . . . . . 6 16 1 4 . Level 2 1 | . . . . . . . . 11 . Level 3 . | . . . . . . . . . . Level 4 . | . . . . . . . . . . Level 5 . | . . . . . . . . . . High Security . | . . . . . . . . . . Max Security . | . . . . . . . . . . Squads Dispatched 12 | . . 1 . . 1 5 3 2 . Investigation 3 | . . 1 . . . 1 . 1 . Extermination 2 | . . . . . . 1 1 . . Reinforcement 4 | . . . . . . 2 1 1 . Assault . | . . . . . . . . . . Garrison 3 | . . . . . 1 1 1 . . Intercept . | . . . . . . . . . . Searches Triggered . | . . . . . . . . . . Construction Impeded 3 | . . . . . . 1 1 1 . Haulers Reinforced 1 | . . . . . . 1 . . . Active Scanning Responses . | . . . . . . . . . . Cargo Convoy Interrupts . | . . . . . . . . . . Stealth | -11 -10 -10 -10 -9 -8 -7 -6 -5 -5 --------- Run | Yrd Mat Min Exi Min Mat Fac Fac Fac Ext Distress Signals 5 | . 1 . . . 2 . . 2 . Communications Jammed . | . . . . . . . . . . Distress Signals . | . . . . . . . . . . Times Spotted 66 | . 6 4 . 2 18 18 5 8 5 Peak Tracking Total 6 | . 5 2 . 1 6 5 2 3 4 Tactical Retreats . | . . . . . . . . . . Traps | -11 -10 -10 -10 -9 -8 -7 -6 -5 -5 ------- Run | Yrd Mat Min Exi Min Mat Fac Fac Fac Ext Traps Triggered . | . . . . . . . . . . Indirectly . | . . . . . . . . . . Trap Hack Attempts . | . . . . . . . . . . Triggered . | . . . . . . . . . . Disarmed . | . . . . . . . . . . Reprogrammed 7 | . . . . . 1 6 . . . Reused . | . . . . . . . . . . Traps Extracted . | . . . . . . . . . . Installed . | . . . . . . . . . . Triggered . | . . . . . . . . . . Machines | -11 -10 -10 -10 -9 -8 -7 -6 -5 -5 ---------- Run | Yrd Mat Min Exi Min Mat Fac Fac Fac Ext Machines Disabled 17 | . . . . . 2 1 3 11 . Max in Single Turn 4 | . . . . . 1 1 3 4 . Garrison Access 2 | . . . . . 1 1 . . . Machines Repaired . | . . . . . . . . . . Machines Dismantled . | . . . . . . . . . . Machines Sabotaged . | . . . . . . . . . . Overloaded Fab Kills . | . . . . . . . . . . Hacking | -11 -10 -10 -10 -9 -8 -7 -6 -5 -5 --------- Run | Yrd Mat Min Exi Min Mat Fac Fac Fac Ext Machines Accessed 18 | . 2 1 . . 3 7 3 2 . Terminals 10 | . 2 . . . 2 3 1 2 . Fabricators 2 | . . . . . . 2 . . . Repair Stations 1 | . . . . . . 1 . . . Recycling Units 2 | . . . . . . . 2 . . Scanalyzers . | . . . . . . . . . . Garrison Access 2 | . . . . . 1 1 . . . Total Hacks 44 | . 3 1 . . 13 17 7 3 . Successful 35 | . 3 1 . . 10 14 6 1 . Failed 9 | . . . . . 3 3 1 2 . Catastrophic 1 | . . . . . . . . 1 . Database Lockouts . | . . . . . . . . . . Manual 17 | . . . . . 9 4 2 2 . Terminals 29 | . 3 . . . 10 9 4 3 . Fabricators 4 | . . . . . . 4 . . . Repair Stations 3 | . . . . . . 3 . . . Recycling Units 3 | . . . . . . . 3 . . Scanalyzers . | . . . . . . . . . . Garrison Access 4 | . . . . . 3 1 . . . Terminal Hacks 24 | . 3 1 . . 9 7 3 1 . Robot Analysis 2 | . . . . . . 1 1 . . Open Door 2 | . . 1 . . . . . 1 . Level Access Points 3 | . . . . . 1 1 1 . . Branch Access Points 3 | . 1 . . . 1 1 . . . Emergency Access Points 1 | . . . . . 1 . . . . Alert Level 1 | . 1 . . . . . . . . Unreport Threat 3 | . . . . . 2 1 . . . Locate Traps 1 | . . . . . . . 1 . . Reprogram Traps 3 | . . . . . 2 1 . . . Zone Layout 5 | . 1 . . . 2 2 . . . Fabricator Hacks 3 | . . . . . . 3 . . . Network Status 2 | . . . . . . 2 . . . Build 1 | . . . . . . 1 . . . Repair Station Hacks 3 | . . . . . . 3 . . . Scan Component 1 | . . . . . . 1 . . . Repair 1 | . . . . . . 1 . . . Refit 1 | . . . . . . 1 . . . Recycling Unit Hacks 3 | . . . . . . . 3 . . Retrieve Matter 1 | . . . . . . . 1 . . Retrieve Components 2 | . . . . . . . 2 . . Scanalyzer . | . . . . . . . . . . Garrison Access Hacks 2 | . . . . . 1 1 . . . Seal Access 2 | . . . . . 1 1 . . . Unauthorized Hacks . | . . . . . . . . . . Terminals . | . . . . . . . . . . Fabricators . | . . . . . . . . . . Repair Stations . | . . . . . . . . . . Recycling Units . | . . . . . . . . . . Scanalyzers . | . . . . . . . . . . Garrison Access . | . . . . . . . . . . Data Cores Recovered 1 | . . . . . 1 . . . . Used . | . . . . . . . . . . Hacking Detections 12 | . . . . . 3 5 3 1 . Full Trace Events 3 | . . . . . 1 1 . 1 . Feedback Events . | . . . . . . . . . . Feedback Blocked . | . . . . . . . . . . Robot Schematics Acquired . | . . . . . . . . . . Robots Built 3 | . . . . . . 3 . . . Authchips . | . . . . . . . . . . Time 58 | . . . . . . 58 . . . Total Robot Build Rating 9 | . . . . . . 9 . . . Part Schematics Acquired . | . . . . . . . . . . Parts Built . | . . . . . . . . . . Authchips . | . . . . . . . . . . Time . | . . . . . . . . . . Total Part Build Rating . | . . . . . . . . . . Parts Repaired 1 | . . . . . . 1 . . . Time 26 | . . . . . . 26 . . . Parts Recycled . | . . . . . . . . . . Recycled Matter . | . . . . . . . . . . Retrieved Matter . | . . . . . . . . . . Retrieved Components 3 | . . . . . . . 3 . . Parts Scanalyzed . | . . . . . . . . . . Part Schematics Acquired . | . . . . . . . . . . Parts Damaged . | . . . . . . . . . . Bothacking | -11 -10 -10 -10 -9 -8 -7 -6 -5 -5 ------------ Run | Yrd Mat Min Exi Min Mat Fac Fac Fac Ext Used RIF Installer . | . . . . . . . . . . Robots Hacked . | . . . . . . . . . . Non-combat . | . . . . . . . . . . Combat . | . . . . . . . . . . Robot Hacks Applied . | . . . . . . . . . . Relay Couplers Released . | . . . . . . . . . . Fabnet Peak Effective % . | . . . . . . . . . . Robots Rewired . | . . . . . . . . . . Allies Hacked . | . . . . . . . . . . Hacks Repelled . | . . . . . . . . . . Allies | -11 -10 -10 -10 -9 -8 -7 -6 -5 -5 -------- Run | Yrd Mat Min Exi Min Mat Fac Fac Fac Ext Total Allies 6 | . . 3 . . . 3 . . . Largest Group 3 | . . 3 3 3 2 3 2 . . Highest-Rated Group 48 | . . 40 40 40 32 48 32 . . Highest-Rated Ally 16 | . . 16 16 16 16 16 16 . . Total Orders . | . . . . . . . . . . Ally Attacks 96 | . . . . 14 33 42 7 . . Total Damage 1462 | . . . . 121 742 547 52 . . Kills 10 | . . . . 1 2 7 . . . Allies Corrupted . | . . . . . . . . . . Allies Melted . | . . . . . . . . . . Intel | -11 -10 -10 -10 -9 -8 -7 -6 -5 -5 ------- Run | Yrd Mat Min Exi Min Mat Fac Fac Fac Ext Robot Analysis Total 2 | . . . . . . 1 1 . . Derelict Logs Recovered . | . . . . . . . . . . Drone Launches . | . . . . . . . . . . Drone Recoveries . | . . . . . . . . . . Exploration | -11 -10 -10 -10 -9 -8 -7 -6 -5 -5 ------------- Run | Yrd Mat Min Exi Min Mat Fac Fac Fac Ext Turns Passed 6561 | 184 414 537 427 242 1242 1466 677 747 625 Spaces Moved 3306 | 130 223 373 353 186 377 725 462 255 222 Core 10 | 10 . . . . . . . . . Treads . | . . . . . . . . . . Legs 3296 | 120 223 373 353 186 377 725 462 255 222 Wheels . | . . . . . . . . . . Hover . | . . . . . . . . . . Flight . | . . . . . . . . . . Fastest Speed 50 | 50 120 120 120 120 120 120 125 125 125 Average Speed 122 | 117 120 132 120 120 120 120 125 125 125 Slowest Speed 190 | 150 120 190 120 120 120 125 125 125 125 Overloaded Moves . | . . . . . . . . . . Propulsion Burnouts . | . . . . . . . . . . Robots Hopped . | . . . . . . . . . . Cave-ins Triggered . | . . . . . . . . . . Exploration Rate (%) 30 | 5 29 63 77 40 24 22 14 8 27 Regions Visited 9 Branch Regions 4 Pre-discovered Areas . | . . . . . . . . . . Known Exits Taken 9 | 1 1 1 1 1 1 1 1 1 . Unknown Exits Taken . | . . . . . . . . . . Scrap Searched . | . . . . . . . . . . Spaces Dug . | . . . . . . . . . . Terrain Destroyed 265 | . . . . . 23 32 57 153 . Melee . | . . . . . . . . . . Projectile 7 | . . . . . . . 4 3 . AOE 258 | . . . . . 23 32 53 150 . Terrain Rammed . | . . . . . . . . . . Walls Destroyed . | . . . . . . . . . . Machines Disabled . | . . . . . . . . . . Actions | -11 -10 -10 -10 -9 -8 -7 -6 -5 -5 --------- Run | Yrd Mat Min Exi Min Mat Fac Fac Fac Ext Total 5658 | 148 365 407 356 202 1132 1276 545 662 565 Wait 2181 | . 139 25 . 8 701 508 67 394 339 Move 3297 | 129 222 372 352 185 376 724 461 254 222 Hop . | . . . . . . . . . . Pick Up . | . . . . . . . . . . Fast Attach 13 | 6 . 2 . . . 4 1 . . Attach . | . . . . . . . . . . Detach 1 | . . . . . . 1 . . . Swap 9 | . . . . . 2 2 3 2 . Drop 12 | 2 . 1 . . 2 2 3 2 . Fire 112 | 11 4 7 . 3 35 28 10 10 4 Melee . | . . . . . . . . . . Ram . | . . . . . . . . . . Kick . | . . . . . . . . . . Crush . | . . . . . . . . . . Escape Stasis . | . . . . . . . . . . Rewire 5 | . . . 4 . . 1 . . . Trap . | . . . . . . . . . . Miscellaneous 28 | . . . . 6 16 6 . . . Route ------- -11/Scrapyard -10/Materials -10/Mines -10/Exiles -9/Mines -8/Materials (discovered 3 exits: *Fac x3) -7/Factory (discovered 6 exits: *Fac x4 / Low x2) -6/Factory (discovered 4 exits: *Fac x4) -5/Factory -5/Extension History --------- Turn | Location | Event 22 | -11/Scrapyard | Identified exit to Materials 22 | -11/Scrapyard | Discovered exit to Materials (range 14) 185 | -11/Scrapyard | Entered Materials 219 | -10/Materials | Upgraded with Propulsion slot (x1) 300 | -10/Materials | Build established: Hacker-Mutant 580 | -10/Materials | Identified exit to Mines 599 | -10/Materials | Entered Mines 650 | -10/Mines | Assembled infested the area 653 | -10/Mines | Met a Derelict shopkeep closing up shop 936 | -10/Mines | Core integrity fell below 50% 1051 | -10/Mines | Assisted by bots powering up and referring to "LRC-V3" 1128 | -10/Mines | Deemed a non-threat by the Exiles lab entrance 1129 | -10/Mines | Identified exit to Exiles 1129 | -10/Mines | Discovered exit to Exiles (range 5) 1136 | -10/Mines | Entered Exiles 1136 | -10/Exiles | Accompanied by 3 allies 1165 | -10/Exiles | Met 8R-AWN 1186 | -10/Exiles | Met EX-HEX 1287 | -10/Exiles | Met EX-DEC 1321 | -10/Exiles | Visited The Gauntlet 1544 | -10/Exiles | Identified exit to Mines 1544 | -10/Exiles | Discovered exit to Mines (range 14) 1563 | -10/Exiles | Entered Mines 1563 | -9/Mines | Accompanied by 3 allies 1565 | -9/Mines | Reached level 2 1577 | -9/Mines | Met a Derelict bent on vengeance 1755 | -9/Mines | Identified exit to Materials 1755 | -9/Mines | Discovered exit to Materials (range 14) 1805 | -9/Mines | Entered Materials 1805 | -8/Materials | Accompanied by 2 allies 1807 | -8/Materials | Reached level 3 1807 | -8/Materials | Reached level 4 1807 | -8/Materials | Reached level 5 1807 | -8/Materials | Reached level 6 1857 | -8/Materials | Reached level 7 1859 | -8/Materials | Core integrity fell below 50% 1904 | -8/Materials | Destroyed 7 combat bots 1946 | -8/Materials | Identified exit to Factory 2245 | -8/Materials | Build established: Wizard-Mutant 3047 | -8/Materials | Entered Factory 3049 | -7/Factory | Reached level 8 3049 | -7/Factory | Reached level 9 3101 | -7/Factory | Upgraded with Utility slot (x1) 3101 | -7/Factory | Upgraded with Weapon slot (x1) 3497 | -7/Factory | Repaired Aluminum Leg 3655 | -7/Factory | Fabricated G-47 Trooper (x3) 3757 | -7/Factory | Reached level 10 3998 | -7/Factory | Garrison activated, responded to threat 4089 | -7/Factory | Identified exit to Factory 4089 | -7/Factory | Identified exit to Lower Caves 4309 | -7/Factory | Reached level 11 4462 | -7/Factory | Upgraded with Utility slot (x1) 4513 | -7/Factory | Entered another Factory area 4513 | -6/Factory | Accompanied by 2 allies 4515 | -6/Factory | Reached level 12 4515 | -6/Factory | Reached level 13 4532 | -6/Factory | Upgraded with Weapon slot (x1) 4901 | -6/Factory | Identified exit to Factory 5137 | -6/Factory | Garrison activated, responded to threat 5177 | -6/Factory | Core integrity fell below 50% 5190 | -6/Factory | Entered another Factory area 5191 | -5/Factory | Core integrity fell below 50% 5192 | -5/Factory | Reached level 14 5192 | -5/Factory | Reached level 15 5850 | -5/Factory | Reached level 16 5932 | -5/Factory | Identified exit to Extension 5932 | -5/Factory | Discovered exit to Extension (range 6) 5937 | -5/Factory | Entered Extension 6469 | -5/Extension | Spotted B-75 Beast 6547 | -5/Extension | Spotted B-75 Beast 6554 | -5/Extension | Core integrity fell below 20% 6562 | -5/Extension | Destroyed by B-75 Beast with Heavy Plasma Cannon Last Messages --------------- 06181_ U-05 Engineer enters Transfer Station. 06183_ R-10 Processor enters Transfer Station. 06184_ K-01 Serf exits Transfer Station. 06185_ U-05 Engineer exits Transfer Station. 06187_ K-01 Serf exits Transfer Station. 06197_ R-10 Processor enters Transfer Station. 06199_ K-01 Serf enters Transfer Station. 06217_ Destroyed Imp. Hover Unit. 06217_ Destroyed Lgt. Deuterium Engine. 06219_ W-25 Informer destroyed. 06231_ Acquired 4 matter. 06237_ Acquired 2 matter. 06246_ Acquired 6 matter. 06545_ U-05 Engineer destroyed. 06555_ Penetrated by Slug. 06555_ Slug penetrates Wall. 06556_ Knocked back. 06558_ Penetrated by Slug. 06558_ Acquired 20 matter. Map ----- +----------------------------------------------------+ | ?????????????????????????????????????????????????? | | ?????????????????????????????????????????????????? | | ?????????????????????????????????????????????????? | | ?????????????????????????????????????????????????? | | ?????????????????????????????????????????????????? | | ????????????????????????? ???????????????????????? | | ????????????????????????? ???????????????????????? | | ????????????????????????? #??????????????????????? | | ????????????????????????? #??????????????????????? | | ????????????????????????? #??????????????????????? | | ????????????????????????? #??????????????????????? | | ?????????????????????????u#??##?##???????????????? | | ??????????????????????### ### ## ### ?#??????????? | | ###???????????????????#"" "" "" ""#?????????? | | #???????????????????# " " Y " " #?????????? | | #???????????????????# Y #?????????? | | #??????#??#?????????# #?????????? | | +#########"##"######### ###???????? | | ??????? | | ??????? | | % ??????? | | ? % % | ?????? | | ? ?u|=* =%! t ?????? | | ####################### !BB *BB #?????????? | | ??????????????????????#=!BB BB #?????????? | | ??????????????????????# @ #?????????? | | ??????????????????????# #?????????? | | ??????????????????????# #?????????? | | ??????????????????????######T#"""#######?????????? | | ?????????????????????????????#???????????????????? | | ?????????????????????????????????????????????????? | | | | | | | | | | | | | | | | | | | | | | | | | | | | | | | | | | | | | | | +----------------------------------------------------+ Best States ------------- Heat Dissipation 37 Energy Generation 23 Energy Capacity 260 Matter Stores 350 Matter Capacity 350 Sight Range 20 Robot Scan Range 40 Terrain Scan Density 310 Armor Coverage 80 Resistance: KI 40 Resistance: TH 40 Resistance: EX 40 Resistance: EM 35 Resistance: I 35 Resistance: S 35 Resistance: P 35 Evasion (%) 55 Targeting Accuracy 5 Offensive Hacking 65 Defensive Hacking 5 Item Schematics ----------------- None Robot Schematics ------------------ None Fabricated ------------ G-47 Trooper | x3 | -7/Factory | Preloaded Alien Tech Used ----------------- None Achievements -------------- root@ Challenges ------------ None RPGLIKE | -11 -10 -10 -10 -9 -8 -7 -6 -5 -5 --------- Run | Yrd Mat Min Exi Min Mat Fac Fac Fac Ext Levels Raised 15 | . . . . 1 5 4 2 3 . XP Earned 29707 | 6000 100 900 200 1560 7429 5385 3148 3950 1035 XP Spent 28470 | . 5975 . . 1500 7200 6310 800 6685 . Upgrades 69 | . 22 . . 3 8 21 1 14 . Propulsion Slot 1 | . 1 . . . . . . . . Utility Slot 2 | . . . . . . 2 . . . Weapon Slot 2 | . . . . . . 1 1 . . Core Integrity 5 | . . . . . . 4 . 1 . Heat Dissipation 2 | . . . . . . . . 2 . Energy Generation 1 | . . . . . . 1 . . . Energy Storage 2 | . . . . . . 1 . 1 . Matter Storage 1 | . 1 . . . . . . . . Mass Support 1 | . . . . . . 1 . . . Inventory Capacity 2 | . . . . . . 2 . . . Sight Range 4 | . . . . . . 4 . . . Sensor Range 20 | . 19 . . . . . . 1 . Terrain Scan Density 1 | . 1 . . . . . . . . Ranged Accuracy 4 | . . . . . . 2 . 2 . Hack Attack % 9 | . . . . . 8 . . 1 . Hack Defense % 1 | . . . . . . 1 . . . KI Resistance % 1 | . . . . . . 1 . . . TH Resistance % 1 | . . . . . . 1 . . . EX Resistance % 1 | . . . . . . . . 1 . KI Damage % 3 | . . . . 3 . . . . . TH Damage % 2 | . . . . . . . . 2 . EX Damage % 3 | . . . . . . . . 3 . Protomatter Created 411 | . . 45 . 26 129 108 . 103 . Integrity Restored 591 | . . . . 129 342 120 . . . Core 591 | . . . . 129 342 120 . . . Protomatter Decayed 264 | . . 87 . 26 49 90 . 12 . Game ------ Seed FlakSuperquantumComputer Manual? 0 Play Time 00:57:56 Cumulative 20.4 hours Start 2024.09.24 @ 18:25:56 End 2024.09.24 @ 20:49:18 Sessions 3 Manual Loads 0 Difficulty Explorer Special Mode Winter2019/RPGLIKE Game No. 36 Rogue 2 Adventurer 2 Explorer 32 Win Type - Total 0 Types 0/0/0/0/0/0/0/0/0 Lore% 30 Gallery% 27 Achievement% 23 Wizard Run 0 Options --------- Layout 2 ASCII 0 Keyboard 1 Movement Numpad Keybinds 1 Fullscreen 2 Font 24/X11 Map View 50x44 Zoom Use 3% Tactical HUD 1 Map Filters NONE Filters NONE Steam 0 RUN: 8237337d-002a-4116-98b6-0b149474407c